{"text_format":"1","workbook":"xlsx","n_sheets":3,"sheets":["Cedula5B","Enviar","Prompt"],"not_rendered":{"charts":0,"images":4,"macros":1,"external_links":0,"defined_names":3,"comments":1,"pivot_tables":0},"unopened":[],"bounds":{"document_bytes":16777216,"sheet_cells":100000,"rows_first":2000,"rows_last":500,"rows_between":2000,"halvings":0,"cell_chars":16384,"cell_head_chars":4096},"cells_cut":0,"cells_raw":0,"read":"whole","date_system":"1900"}

{"sheet":"Cedula5B","index":0,"n_rows":272,"n_cols":34,"rows_kept":272,"cut":false,"hidden":true,"merged":[[1,6,1,17],[2,6,2,17],[1,21,3,22],[26,22,26,23],[12,20,12,21],[25,8,25,15],[25,16,25,23],[26,18,26,19],[26,8,26,9],[26,10,26,11],[26,12,26,13],[26,20,26,21],[3,6,3,17],[4,6,4,17],[26,14,26,15],[26,16,26,17],[14,5,14,21],[25,2,26,5],[16,16,16,21],[16,5,16,12],[222,20,222,23],[222,8,222,12],[223,8,223,12],[224,8,224,12],[222,13,222,19],[223,13,223,19],[224,13,224,19],[221,2,221,7],[222,2,222,7],[223,2,223,7],[224,2,224,7],[223,20,223,23],[224,20,224,23],[76,26,77,27],[76,28,77,29],[76,30,77,31],[76,32,77,33],[76,6,77,7],[76,8,76,13],[76,14,76,17],[76,18,76,21],[76,22,77,23],[77,8,77,9],[77,10,77,11],[77,12,77,13],[77,14,77,15],[77,16,77,17],[77,18,77,19],[77,20,77,21],[76,24,77,25],[27,3,27,5],[25,6,27,7],[76,2,77,5],[78,3,78,5],[44,6,44,7],[45,6,45,7],[46,6,46,7],[47,6,47,7],[48,6,48,7],[49,6,49,7],[50,6,50,7],[51,6,51,7],[52,6,52,7],[53,6,53,7],[54,6,54,7],[38,6,38,7],[39,6,39,7],[40,6,40,7],[41,6,41,7],[42,6,42,7],[43,6,43,7],[70,6,70,7],[29,6,29,7],[30,6,30,7],[126,32,127,33],[127,8,127,9],[127,10,127,11],[127,12,127,13],[127,14,127,15],[127,16,127,17],[127,18,127,19],[127,20,127,21],[126,22,127,23],[126,24,127,25],[126,26,127,27],[126,28,127,29],[126,30,127,31],[126,14,126,17],[126,18,126,21],[31,6,31,7],[32,6,32,7],[33,6,33,7],[34,6,34,7],[35,6,35,7],[36,6,36,7],[37,6,37,7],[60,6,60,7],[61,6,61,7],[62,6,62,7],[63,6,63,7],[64,6,64,7],[55,6,55,7],[56,6,56,7],[57,6,57,7],[58,6,58,7],[59,6,59,7],[176,2,178,4],[176,5,177,9],[178,7,178,9],[178,5,178,6],[65,6,65,7],[66,6,66,7],[67,6,67,7],[68,6,68,7],[69,6,69,7],[128,3,128,5],[126,2,127,5],[126,6,127,7],[126,8,126,13],[187,12,187,15],[187,16,187,19],[187,20,187,23],[180,5,180,6],[181,5,181,6],[179,5,179,6],[179,7,179,9],[180,7,180,9],[181,7,181,9],[190,12,190,15],[190,16,190,19],[190,20,190,23],[189,12,189,15],[189,16,189,19],[189,20,189,23],[188,12,188,15],[188,16,188,19],[188,20,188,23],[193,16,193,19],[193,20,193,23],[193,3,193,6],[193,7,193,11],[192,12,192,15],[192,16,192,19],[192,20,192,23],[192,7,192,11],[191,12,191,15],[191,16,191,19],[191,20,191,23],[199,2,200,5],[199,6,199,7],[199,8,199,9],[199,10,199,11],[221,20,221,23],[221,13,221,19],[221,8,221,12],[187,3,187,6],[187,7,187,11],[188,7,188,11],[189,7,189,11],[190,7,190,11],[191,7,191,11],[194,7,194,11],[194,3,194,6],[188,3,188,6],[189,3,189,6],[190,3,190,6],[191,3,191,6],[192,3,192,6],[194,12,194,15],[194,16,194,19],[194,20,194,23],[193,12,193,15]]}
[2025]
[null,null,null,null,null,null,"CENSO EDUCATIVO 2025",null,null,null,null,null,null,null,null,null,null,null,null,null,null,"5B"]
[null,null,null,null,null,null,"EDUCACIÓN SUPERIOR"]
[null,null,null,null,null,null,"PEDAGÓGICA"]
[null,null,"Versión :",1]
[null,null,"INSTRUCCIONES DEL FORMATO ELECTRÓNICO "]
[]
[]
[]
[null,null,"IDENTIFICACIÓN DEL SERVICIO EDUCATIVO"]
[]
[]
[null,null,null,"   1.  CÓDIGO MODULAR :",null,null,null,null,null,null,null,null,null,null,"2.  CÓDIGO DE LOCAL EDUCATIVO :"]
[]
[null,null,null,"   3.  NOMBRE DEL SERVICIO :"]
[]
[null,null,null,"   4. DISTRITO :",null,null,null,null,null,null,null,null,null,null,"LOCALIDAD :"]
[]
[null,null,null,"5. TIPO DE SERVICIO/NIVEL EDUCATIVO  :",null,null,null,null,"","Instituto de Educación Superior Pedagógico - IESP",null,null,null,null,null,null,null,"Escuela de Educación Superior Pedagógica - EESP"]
[]
[]
[]
[null,null,"100. RESULTADO DEL EJERCICIO EDUCATIVO"]
[]
[null,null,"101. MATRÍCULADOS, RETIRADOS, EGRESADOS Y TITULADOS EN 2025, POR SEMESTRE ACADEMICO Y SEXO, ESPECIALIDAD Y AREA."]
[null,null,"CARRERAS Y/O PROGRAMAS DE ESTUDIOS",null,null,null,"TIPO DE MODALIDAD",null,"SEMESTRE - I",null,null,null,null,null,null,null,"SEMESTRE - II"]
[null,null,null,null,null,null,null,null,"Matriculados",null,"Retirados",null,"Egresados",null,"Titulados",null,"Matriculados",null,"Retirados",null,"Egresados",null,"Titulados"]
[null,null,"CÓDIGO","DENOMINACIÓN",null,null,null,null,"H","M","H","M","H","M","H","M","H","M","H","M","H","M","H","M"]
[{"$f":"SUM(A30:A71)","v":0},null,"00","TOTAL",null,null,null,null,{"$f":"SUM(I30:I71)","v":0},{"$f":"SUM(J30:J71)","v":0},{"$f":"SUM(K30:K71)","v":0},0,0,0,0,0,0,0,0,0,0,0,0,0]
[{"$f":"SUM(I30:X30)","v":0},null,"01","Educación Inicial"]
[{"$f":"SUM(I31:X31)","v":0},null,"02","Educación Primaria"]
[0,null,"03","Educación Inicial Intercultural Bilingüe"]
[0,null,"04","Educación Primaria Intercultural Bilingüe"]
[0,null,"05","Educación Básica Alternativa"]
[0,null,"06","Educación Especial"]
[0,null,"07","Educación Física"]
[0,null,"08","Educación Artística"]
[0,null,"09","E.S. Lengua y Literatura"]
[0,null,"10","E.S. especialidad Comunicación"]
[0,null,"11","E.S. Matemática y Física"]
[0,null,"12","E.S. especialidad Matemática"]
[0,null,"13","E.S. CCSS y Filosofía"]
[0,null,"14","E.S. especialidad Ciudadanía y Ciencias Sociales"]
[0,null,"15","E.S. Ciencias Naturales"]
[0,null,"16","E.S. especialidad Ciencia y Tecnología"]
[0,null,"17","E.S. Alimentación y Nutrición"]
[0,null,"18","E.S. Biología y Química"]
[0,null,"19","E.S. Historia y Geografía"]
[0,null,"20","E.S. CC.HH. Sociales"]
[0,null,"21","Idiomas especialidad Inglés"]
[0,null,"22","Educación Religiosa"]
[0,null,"23","E.S. Educación Familiar"]
[0,null,"24","E.T. Artes Industriales"]
[0,null,"25","E.T. Artesanía"]
[0,null,"26","E.T. Agropecuaria"]
[0,null,"27","E.T. Construcción en madera"]
[0,null,"28","Computación e Informática"]
[0,null,"29","E.T. Carpintería / Ebanistería"]
[0,null,"30","E.T. Electricidad"]
[0,null,"31","E.T. Electrónica"]
[0,null,"32","E.T. Ebanistería"]
[0,null,"33","E.T. Industria del Vestido"]
[0,null,"34","E.T. Industria del Vestido Alimentación y Alta Costura"]
[0,null,"35","E.T. en Industria del Vestido y Alta Costura"]
[0,null,"36","E.S.Técnica esp. Ind. del Vestido Ind.Aliment. y Artesanía"]
[0,null,"37","E.T. Industria Alimentaria"]
[0,null,"38","E.T. Mecánica Automotriz"]
[0,null,"39","E.T. Mecánica de Producción"]
[0,null,"40","E.T. Mecánica de Producción y Soldadura"]
[0,null,"41","Educación para el trabajo: Textil y Confección"]
[0,null,"42","Otro"]
[null,null,"*Nota: El total de Egresados del semestre I y II debe ser menor o igual al número matriculados indicados en la tabla."]
[null,null,"1/ Egresados : Persona que ha culminado sus estudios, y ha aprobado todas las unidades didácticas y ha realizado las experiencias formativas en situaciones reales de trabajo o prácticas preprofesionales."]
[]
[null,null,"102. EGRESADOS POR SEXO, SEGÚN TIPO DISCAPACIDAD U OTRA CONDICIÓN EN LOS SEMESTRES 2025-I y II"]
[]
[null,null,"CARRERAS Y/O PROGRAMAS DE ESTUDIOS",null,null,null,"TOTAL",null,"Discapacidad Intelectual",null,null,null,null,null,"Discapacidad Auditiva",null,null,null,"Discapacidad Visual",null,null,null,"Discapacidad Física o Motora",null,"Trastorno del Espectro Autista",null,"Sordoceguera",null,"Multidis-capacidad",null,"Otra discapacidad u otra condición",null," Ninguna  discapacidad"]
[null,null,null,null,null,null,null,null,"Retardo mental leve",null,"Retardo mental moderado",null,"Retardo mental severo",null,"Hipoacusia",null,"Sordera total",null,"Baja visión",null,"Ceguera"]
[null,null,"CÓDIGO","DENOMINACIÓN",null,null,"H","M","H","M","H","M","H","M","H","M","H","M","H","M","H","M","H","M","H","M","H","M","H","M","H","M","H","M"]
[{"$f":"SUM(A81:A122)","v":0},null,"00","TOTAL",null,null,{"$f":"SUM(G81:G122)","v":0},0,0,0,0,0,0,0,0,0,0,0,0,0,0,0,0,0,0,0,0,0,0,0,0,0,0,0]
[{"$f":"SUM(I81:AH81)","v":0},null,"01","Educación Inicial",null,null,{"$f":"SUM(I81,K81,M81,O81,Q81,S81,U81,W81,Y81,AA81,AC81,AE81,AG81)","v":0},{"$f":"SUM(J81,L81,N81,P81,R81,T81,V81,X81,Z81,AB81,AD81,AF81,AH81)","v":0}]
[0,null,"02","Educación Primaria",null,null,{"$f":"SUM(I82,K82,M82,O82,Q82,S82,U82,W82,Y82,AA82,AC82,AE82,AG82)","v":0},{"$f":"SUM(J82,L82,N82,P82,R82,T82,V82,X82,Z82,AB82,AD82,AF82,AH82)","v":0}]
[0,null,"03","Educación Inicial Intercultural Bilingüe",null,null,{"$f":"SUM(I83,K83,M83,O83,Q83,S83,U83,W83,Y83,AA83,AC83,AE83,AG83)","v":0},{"$f":"SUM(J83,L83,N83,P83,R83,T83,V83,X83,Z83,AB83,AD83,AF83,AH83)","v":0}]
[0,null,"04","Educación Primaria Intercultural Bilingüe",null,null,0,0]
[0,null,"05","Educación Básica Alternativa",null,null,0,0]
[0,null,"06","Educación Especial",null,null,0,0]
[0,null,"07","Educación Física",null,null,0,0]
[0,null,"08","Educación Artística",null,null,0,0]
[0,null,"09","E.S. Lengua y Literatura",null,null,0,0]
[0,null,"10","E.S. especialidad Comunicación",null,null,0,0]
[0,null,"11","E.S. Matemática y Física",null,null,0,0]
[0,null,"12","E.S. especialidad Matemática",null,null,0,0]
[0,null,"13","E.S. CCSS y Filosofía",null,null,0,0]
[0,null,"14","E.S. especialidad Ciudadanía y Ciencias Sociales",null,null,0,0]
[0,null,"15","E.S. Ciencias Naturales",null,null,0,0]
[0,null,"16","E.S. especialidad Ciencia y Tecnología",null,null,0,0]
[0,null,"17","E.S. Alimentación y Nutrición",null,null,0,0]
[0,null,"18","E.S. Biología y Química",null,null,0,0]
[0,null,"19","E.S. Historia y Geografía",null,null,0,0]
[0,null,"20","E.S. CC.HH. Sociales",null,null,0,0]
[0,null,"21","Idiomas especialidad Inglés",null,null,0,0]
[0,null,"22","Educación Religiosa",null,null,0,0]
[0,null,"23","E.S. Educación Familiar",null,null,0,0]
[0,null,"24","E.T. Artes Industriales",null,null,0,0]
[0,null,"25","E.T. Artesanía",null,null,0,0]
[0,null,"26","E.T. Agropecuaria",null,null,0,0]
[0,null,"27","E.T. Construcción en madera",null,null,0,0]
[0,null,"28","Computación e Informática",null,null,0,0]
[0,null,"29","E.T. Carpintería / Ebanistería",null,null,0,0]
[0,null,"30","E.T. Electricidad",null,null,0,0]
[0,null,"31","E.T. Electrónica",null,null,0,0]
[0,null,"32","E.T. Ebanistería",null,null,0,0]
[0,null,"33","E.T. Industria del Vestido",null,null,0,0]
[0,null,"34","E.T. Industria del Vestido Alimentación y Alta Costura",null,null,0,0]
[0,null,"35","E.T. en Industria del Vestido y Alta Costura",null,null,0,0]
[0,null,"36","E.S.Técnica esp. Ind. del Vestido Ind.Aliment. y Artesanía",null,null,0,0]
[0,null,"37","E.T. Industria Alimentaria",null,null,0,0]
[0,null,"38","E.T. Mecánica Automotriz",null,null,0,0]
[0,null,"39","E.T. Mecánica de Producción",null,null,0,0]
[0,null,"40","E.T. Mecánica de Producción y Soldadura",null,null,0,0]
[{"$f":"SUM(I121:AH121)","v":0},null,"41","Educación para el trabajo: Textil y Confección",null,null,0,0]
[0,null,"42","Otra",null,null,0,0]
[null,null,"Nota: Los totales de esta tabla deben ser iguales a la suma de la columna “Egresados” del semestre I y II de la tabla 101."]
[]
[null,null,"103. TITULADOS POR SEXO, SEGÚN TIPO DISCAPACIDAD U OTRA CONDICIÓN EN LOS SEMESTRES 2025-I y II"]
[]
[null,null,"CARRERAS Y/O PROGRAMAS DE ESTUDIOS",null,null,null,"TOTAL",null,"Discapacidad Intelectual",null,null,null,null,null,"Discapacidad Auditiva",null,null,null,"Discapacidad Visual",null,null,null,"Discapacidad Física o Motora",null,"Trastorno del Espectro Autista",null,"Sordoceguera",null,"Multidis-capacidad",null,"Otra discapacidad u otra condición",null," Ninguna  discapacidad"]
[null,null,null,null,null,null,null,null,"Retardo mental leve",null,"Retardo mental moderado",null,"Retardo mental severo",null,"Hipoacusia",null,"Sordera total",null,"Baja visión",null,"Ceguera"]
[null,null,"CÓDIGO","DENOMINACIÓN",null,null,"H","M","H","M","H","M","H","M","H","M","H","M","H","M","H","M","H","M","H","M","H","M","H","M","H","M","H","M"]
[{"$f":"SUM(I130:AH130)","v":0},null,"00","TOTAL",null,null,{"$f":"SUM(G131:G172)","v":0},0,0,0,0,0,0,0,0,0,0,0,0,0,0,0,0,0,0,0,0,0,0,0,0,0,0,0]
[0,null,"01","Educación Inicial",null,null,{"$f":"SUM(I131,K131,M131,O131,Q131,S131,U131,W131,Y131,AA131,AC131,AE131,AG131)","v":0},{"$f":"SUM(J131,L131,N131,P131,R131,T131,V131,X131,Z131,AB131,AD131,AF131,AH131)","v":0}]
[0,null,"02","Educación Primaria",null,null,{"$f":"SUM(I132,K132,M132,O132,Q132,S132,U132,W132,Y132,AA132,AC132,AE132,AG132)","v":0},{"$f":"SUM(J132,L132,N132,P132,R132,T132,V132,X132,Z132,AB132,AD132,AF132,AH132)","v":0}]
[0,null,"03","Educación Inicial Intercultural Bilingüe",null,null,{"$f":"SUM(I133,K133,M133,O133,Q133,S133,U133,W133,Y133,AA133,AC133,AE133,AG133)","v":0},{"$f":"SUM(J133,L133,N133,P133,R133,T133,V133,X133,Z133,AB133,AD133,AF133,AH133)","v":0}]
[0,null,"04","Educación Primaria Intercultural Bilingüe",null,null,0,0]
[0,null,"05","Educación Básica Alternativa",null,null,0,0]
[0,null,"06","Educación Especial",null,null,0,0]
[0,null,"07","Educación Física",null,null,0,0]
[0,null,"08","Educación Artística",null,null,0,0]
[0,null,"09","E.S. Lengua y Literatura",null,null,0,0]
[0,null,"10","E.S. especialidad Comunicación",null,null,0,0]
[0,null,"11","E.S. Matemática y Física",null,null,0,0]
[0,null,"12","E.S. especialidad Matemática",null,null,0,0]
[0,null,"13","E.S. CCSS y Filosofía",null,null,0,0]
[0,null,"14","E.S. especialidad Ciudadanía y Ciencias Sociales",null,null,0,0]
[0,null,"15","E.S. Ciencias Naturales",null,null,0,0]
[0,null,"16","E.S. especialidad Ciencia y Tecnología",null,null,0,0]
[0,null,"17","E.S. Alimentación y Nutrición",null,null,0,0]
[0,null,"18","E.S. Biología y Química",null,null,0,0]
[0,null,"19","E.S. Historia y Geografía",null,null,0,0]
[0,null,"20","E.S. CC.HH. Sociales",null,null,0,0]
[0,null,"21","Idiomas especialidad Inglés",null,null,0,0]
[0,null,"22","Educación Religiosa",null,null,0,0]
[0,null,"23","E.S. Educación Familiar",null,null,0,0]
[0,null,"24","E.T. Artes Industriales",null,null,0,0]
[0,null,"25","E.T. Artesanía",null,null,0,0]
[0,null,"26","E.T. Agropecuaria",null,null,0,0]
[0,null,"27","E.T. Construcción en madera",null,null,0,0]
[0,null,"28","Computación e Informática",null,null,0,0]
[0,null,"29","E.T. Carpintería / Ebanistería",null,null,0,0]
[0,null,"30","E.T. Electricidad",null,null,0,0]
[0,null,"31","E.T. Electrónica",null,null,0,0]
[0,null,"32","E.T. Ebanistería",null,null,0,0]
[0,null,"33","E.T. Industria del Vestido",null,null,0,0]
[0,null,"34","E.T. Industria del Vestido Alimentación y Alta Costura",null,null,0,0]
[0,null,"35","E.T. en Industria del Vestido y Alta Costura",null,null,0,0]
[0,null,"36","E.S.Técnica esp. Ind. del Vestido Ind.Aliment. y Artesanía",null,null,0,0]
[0,null,"37","E.T. Industria Alimentaria",null,null,0,0]
[0,null,"38","E.T. Mecánica Automotriz",null,null,0,0]
[0,null,"39","E.T. Mecánica de Producción",null,null,0,0]
[0,null,"40","E.T. Mecánica de Producción y Soldadura",null,null,0,0]
[0,null,"41","Educación para el trabajo: Textil y Confección",null,null,0,0]
[0,null,"42","Otra",null,null,0,0]
[null,null,"Nota: Los totales de esta tabla deben ser iguales a la suma de la columna “Titulados” del semestre I y II de la tabla 101."]
[]
[null,null,"104. MATRICULADOS EN CICLO I DEL PERIODO 2025, SON EGRESADOS DEL 5º AÑO DE EDUCACIÓN SECUNDARIA DEL PERIODO 2024?"]
[]
[null,null,"SEMESTRE",null,null,"Número de estudiantes ingresantes al primer ciclo en el periodo 2025, que egresaron en el 5º de Secundaria del 2024"]
[]
[null,null,null,null,null,"H",null,"M"]
["00",null,"00","TOTAL",{"$f":"F180+H180","v":0},{"$f":"SUM(F181:G182)","v":0},null,{"$f":"SUM(H181:J182)","v":0}]
["01",null,"01","2025 - I",{"$f":"F181+H181","v":0}]
["02",null,"02","2025 - II",{"$f":"F182+H182","v":0}]
[]
[]
[null,null,"105. ¿CUÁL ES EL NÚMERO DE PROYECTOS DESARROLLADOS POR INSTITUCIONES DE LA EDUCACIÓN SUPERIOR QUE FUERON FINANCIADOS CON FONDOS PÚBLICOS?"]
[{"$f":"CONCATENATE(I186,N186)","v":""},null,"(Solo para gestión pública)",null,null,null,"--------------------------------",null,"","Gestión Pública",null,null,null,null,"Gestión Privada"]
[]
[{"$f":"COUNTA(D189:G195)","v":0},null,"NRO.","NOMBRE DEL PROYECTO",null,null,null,"INSTITUCION PÚBLICA QUE FINANCIA",null,null,null,null,"PARTIDA PRESUPUESTAL",null,null,null,"FUENTE DE FINANCIAMIENTO",null,null,null,"MONTO COMPROMETIDO"]
[{"$f":"COUNTA(D189:X189)","v":0},null,"01"]
[0,null,"02"]
[0,null,"03"]
[0,null,"04"]
[0,null,"05"]
[0,null,"06"]
[0,null,"07"]
[null,"                                                                                                                                                                                                                                                                                                                                                                                                                                                                                                                                                                                                                                                                         "]
[]
[null,null,"106. RETIRADOS POR SEMESTRE Y SEXO, SEGÚN MOTIVO (al 30/11/2025) EN LOS SEMESTRES 2025-I y II"]
[]
[null,null,"MOTIVO",null,null,null,"TOTAL",null,"SEMESTRE - I",null,"SEMESTRE - II"]
[null,null,null,null,null,null,"H","M","H","M","H","M"]
[null,null,"00","TOTAL RETIRADOS",null,null,{"$f":"SUM(G203:G216)","v":0},0,0,0,0,0]
[null,null,"01","Situación económica",null,null,{"$f":"SUM(I203,K203)","v":0},{"$f":"SUM(J203,L203)","v":0}]
[null,null,"02","Ingreso a la universidad",null,null,{"$f":"SUM(I204,K204)","v":0},{"$f":"SUM(J204,L204)","v":0}]
[null,null,"03","Elección de otra carrera/especialidad",null,null,0,0]
[null,null,"04","Enfermedad / mental",null,null,0,0]
[null,null,"05","Enfermedad / Cáncer",null,null,0,0]
[null,null,"06","Enfermedad / Covid - 19",null,null,0,0]
[null,null,"07","Otra enfermedad",null,null,0,0]
[null,null,"08","Adicción / Consumo de drogas",null,null,0,0]
[null,null,"09","Adicción / Consumo de alcohol",null,null,0,0]
[null,null,"10","Otro tipo de adicción",null,null,0,0]
[null,null,"11","Conducta delictiva",null,null,0,0]
[null,null,"12","Embarazo",null,null,0,0]
[null,null,"13","Migración",null,null,0,0]
[null,null,"14","Otro motivo de retiro",null,null,0,0]
[null,null,"Nota: Los totales de esta tabla deben ser iguales a la suma de lo reportado en el rubro"]
[null,null,"* “Retirados” en los semestres I y II de la tabla 101."]
[]
[null,null,"DATOS DEL DIRECTOR Y/O RESPONSABLE (S) DEL LLENADO DE LA CÉDULA"]
[]
[null,null,"NOMBRES Y APELLIDOS",null,null,null,null,null,"CARGO",null,null,null,null,"CORREO ELECTRÓNICO",null,null,null,null,null,null,"TELÉFONO"]
[1]
[2]
[3]
[]
[]
[]
["DIRECTOR(A)"]
["SUB DIRECTOR(A)"]
["DOCENTE"]
["COORDINADOR(A)"]
["ASESOR"]
["ADMINISTRATIVO"]
["ASISTENTE"]
["AUXILIAR"]
["SECRETARIA(O)"]
["ESTADÍSTICO"]
["ESPECIALISTA"]
["BIBLIOTECARIO"]
["CARE"]
["COMANDANTE PNP"]
["CONTADOR"]
["DAIP"]
["DIGITADOR(A)"]
["GERENTE"]
["JEFE ACADÉMICO"]
["JEFE ADMINISTRATIVO"]
["JEFE DE ÁREA"]
["JEFE DE LABORATORIO"]
["JEFE DE PERSONAL"]
["JEFE DE SEDE"]
["JEFE DE UNIDAD"]
["OFICINISTA"]
["OPERADOR DE SISTEMAS"]
["PERSONAL DE SERVICIO"]
["PROGRAMADOR"]
["PROMOTOR(A)"]
["PSICOLOGO"]
["REGISTRADOR(A)"]
["REPRESENTANTE LEGAL"]
["SOPORTE TECNOLOGICO"]
["TÉCNICO ADMINISTRATIVO"]
["TESORERO(A)"]
["TRABAJADOR SOCIAL"]
["TUTOR"]
["OTROS"]
[]
["TIPO DE MODALIDAD"]
["01: Presencial"]
["02: Semipresencial"]
["03: A Distancia"]

{"sheet":"Enviar","index":1,"n_rows":9,"n_cols":3,"rows_kept":9,"cut":false,"hidden":true,"merged":[[0,0,0,3],[1,0,1,3]]}
["CENSO ESCOLAR 2025"]
["RESULTADO DEL EJERCICIO EDUCATIVO"]
[]
[]
[null,"Paso 1:","Realice el ENVÍO con su clave EOL."]
[]
[null,"Paso 2:","Una vez realizado el ENVÍO,  Revise su constancia de envio."]
[]
[null,"  ADVERTENCIA","Asegúrese de registrar toda la información del nivel informante"]

{"sheet":"Prompt","index":2,"n_rows":39,"n_cols":4,"rows_kept":39,"cut":false,"hidden":false,"merged":[[1,3,2,5],[4,1,6,8],[9,1,10,8],[38,1,39,8]]}
[]
[null,null,null,"¡ATENCIÓN!"]
[]
[]
[null,"Para hacer uso de las funcionalidades de esta Cédula Electrónica debe habilitar macros"]
[]
[]
[]
[]
[null,"Si utiliza Excel 2000, 2002, 2003 siga el siguiente procedimiento:"]
[]
[]
[]
[]
[]
[]
[]
[]
[]
[]
[]
[]
[]
[]
[]
[]
[]
[]
[]
[]
[]
[]
[]
[]
[]
[]
[]
[]
[null,"Si utiliza Excel 2007 siga el siguiente procedimiento:"]